Cogmind - Beta 14 @@@ ROGUE MODE // 2024.11.22 @ 14:38:26 Player: DrEthan Result: Self-destructed Performance ------------- Evolutions (2) 1000 Regions Visited (4) 800 Robots Destroyed (39) 195 Value Destroyed (1063) 1063 Prototype IDs (0) 0 Alien Tech Used (0) 0 Bonus (232) 232 TOTAL SCORE: 3290 Bonus ------- High Alert Combat Kills 11 Follower Combat Kills 66 Entered Garrisons 200 Friendly Fire -45 Cogmind --------- Core Integrity 281/550 Matter 243/300 Energy 53/100 System Corruption 0% Temperature Cool (0) Movement Core (350) Ox6 Location -8/Garrison Parts ------- > --- POWER (1) -------- (None) > --- PROPULSION (4) --- (None) > --- UTILITY (3) ------ Large Storage Unit Advanced Weight Redist. System Salvage Targeting Computer > --- WEAPON (3) ------- (None) > --- INVENTORY (15) --- Heat Sink Visual Processing Unit Sensor Array Signal Interpreter Light Armor Plating Peak State ------------ > --- POWER ------------ (None) > --- PROPULSION ------- Light Treads Light Treads Aluminum Leg > --- UTILITY ---------- Large Storage Unit Advanced Weight Redist. System Salvage Targeting Computer > --- WEAPON ----------- Particle Cannon Improved Light Cannon Shock Bomb Launcher > --- INVENTORY -------- Heat Sink Visual Processing Unit Sensor Array Signal Interpreter Beam Rifle Light Assault Rifle Heavy Assault Rifle Heavy Assault Rifle Datajack [Rating: 17] Favorites ----------- Power Light Nuclear Core Engine Light Ion Engine Power Core Light Nuclear Core Propulsion Aluminum Leg Treads Light Treads Leg Aluminum Leg Utility Large Storage Unit Device Tractor Beam Storage Large Storage Unit Processor Salvage Targeting Computer Protection Medium Armor Plating Weapon Heavy Assault Rifle Energy Gun Beam Rifle Energy Cannon Particle Cannon Ballistic Gun Heavy Assault Rifle Ballistic Cannon Improved Light Cannon Launcher Grenade Launcher Special Melee Weapon Datajack Build | -11 -10 -9 -8 -8 ------- Run | Yrd Mat Mat Mat Gar Slots Evolved 4 | . . 2 2 . Power . | . . . . . Propulsion 2 | . . 2 . . Utility 1 | . . . 1 . Weapon 1 | . . . 1 . Parts Attached 47 | 6 10 16 3 12 Power 5 | 1 2 2 . . Engine 4 | 1 1 2 . . Core 1 | . 1 . . . Reactor . | . . . . . Propulsion 13 | 2 3 4 1 3 Treads 3 | . . . . 3 Leg 10 | 2 3 4 1 . Wheel . | . . . . . Hover . | . . . . . Flight . | . . . . . Utility 10 | 1 4 3 1 1 Device 3 | . 2 . . 1 Storage 5 | 1 2 2 . . Processor 1 | . . . 1 . Hackware . | . . . . . Protection 1 | . . 1 . . Artifact . | . . . . . Weapon 19 | 2 1 7 1 8 Energy Gun 2 | . . . . 2 Energy Cannon 1 | . . . . 1 Ballistic Gun 10 | 2 . 4 1 3 Ballistic Cannon 1 | . . 1 . . Launcher 3 | . 1 1 . 1 Special Weapon . | . . . . . Impact Weapon . | . . . . . Slashing Weapon . | . . . . . Piercing Weapon . | . . . . . Special Melee Weapon 2 | . . 1 . 1 Unidentified Prototypes . | . . . . . Parts Lost 21 | . 1 9 . 11 Power 3 | . . 2 . 1 Propulsion 7 | . . 4 . 3 Utility 2 | . . 1 . 1 Weapon 9 | . 1 2 . 6 Highest Loss Streak 4 | . 1 3 . 4 To Critical Strikes . | . . . . . Average Slot Usage (%) 88 | . 96 91 84 74 Engine 4 | . 3 4 9 4 Core 5 | . 10 5 . . Treads 1 | . . . . 7 Leg 27 | . 28 36 21 15 Device 7 | . 10 7 . 4 Storage 11 | . 14 11 9 9 Processor 2 | . . . 9 9 Protection 2 | . . 3 9 1 Ballistic Gun 16 | . 23 14 18 6 Ballistic Cannon 3 | . . 2 9 8 Launcher 4 | . 4 5 . 3 Peak Build Rating 17 | 6 10 14 16 17 Average Rating 11 | 4 8 11 15 14 On Entrance 8 | . 6 9 11 16 Naked Turns . | . . . . . Heaviest Build 40 | 11 30 37 40 40 Greatest Support 60 | 20 20 40 30 60 Greatest Overweight (x) 6 | . 1 1 1 6 Average Overweight (x) . | . . . 1 . Largest Inventory Capacity 25 | 8 15 25 15 15 Average Capacity 13 | 7 10 15 15 15 Most Carried 13 | 5 10 13 10 12 Average Carried 8 | 2 7 10 9 9 Final Capacity 15 | 8 15 15 15 15 Final Carried 10 | 2 9 10 10 5 Class Distribution -------------------- 60% | Mutant 17% | Scavenger-Mutant 10% | Scavenger-Tank 10% | Gunner Dominant Class ---------------- Mutant | -10/Materials Mutant | -9/Materials Scavenger-Tank | -8/Materials Gunner | -8/Garrison Resources | -11 -10 -9 -8 -8 ----------- Run | Yrd Mat Mat Mat Gar Matter Collected 1193 | 183 333 380 . 297 Remotely 450 | . 178 272 . . Salvage Created 1057 | . 443 435 . 179 Parts 67 | . 19 39 . 9 Haulers Intercepted 2 | . . 2 . . Recyclers Shooed 4 | . 1 3 . . Parts Field Recycled . | . . . . . Retrieved Matter . | . . . . . Parts Self-Destructed . | . . . . . Prevented . | . . . . . Kills | -11 -10 -9 -8 -8 ------- Run | Yrd Mat Mat Mat Gar Combat Hostiles Destroyed 26 | . 9 12 . 5 Guns 12 | . 7 4 . 1 Cannons 4 | . . . . 4 AOE 10 | . 2 8 . . Classes Destroyed 10 | . 3 6 . 1 Worker 4 | . 2 2 . . Builder 2 | . . 2 . . Hauler 2 | . . 2 . . Recycler 2 | . 1 1 . . Operator 1 | . . 1 . . Watcher 2 | . . 2 . . Swarmer 4 | . . 4 . . Grunt 14 | . 9 5 . . Sentry 7 | . . 3 . 4 Hunter 1 | . . . . 1 Best Kill Streak 5 | . 5 5 . 3 Combat Bots Only 4 | . 3 4 . 3 Max Kills in Single Turn 5 | . 2 5 . 1 Gunslinging 1 | . 1 . . . Exploded 4 | . 1 4 . . Melee . | . . . . . Uniques/NPCs Destroyed . | . . . . . Combat | -11 -10 -9 -8 -8 -------- Run | Yrd Mat Mat Mat Gar Hostile Shots Fired 227 | . 55 74 . 98 Missed 48 | . 12 11 . 25 Damage Taken 2637 | . 530 860 . 1247 Core 389 | . 69 51 . 269 Absorbed by Shields . | . . . . . Core Remaining (%) 86 | 100 72 87 . . Volleys Fired 118 | . 35 41 . 42 Largest 3 | . 2 2 . 3 Hottest 143 | . 50 62 . 143 Shots Fired 205 | . 70 75 . 60 Gun 136 | . 67 49 . 20 Cannon 44 | . . 7 . 37 Launcher 25 | . 3 19 . 3 Special . | . . . . . Kinetic 169 | . 67 56 . 46 Thermal 11 | . . . . 11 Explosive 22 | . 3 19 . . Electromagnetic 3 | . . . . 3 Robot Hit Streak 12 | . 8 10 . 12 Robot Miss Streak 3 | . 3 3 . 2 Penetration Max . | . . . . . Secondary Targets 1 | . 1 . . . Max Gunslinging Chain 1 | . 1 . . . Shots Hit Robots 129 | . 44 45 . 40 Core Hits 69 | . 26 33 . 10 Critical Kills . | . . . . . Critical Parts Destroyed . | . . . . . Critical Strikes . | . . . . . Melee Attacks 3 | . . 2 . 1 Impact . | . . . . . Slashing . | . . . . . Piercing . | . . . . . Sneak Attacks . | . . . . . Combat Hostiles . | . . . . . Follow-up Attacks . | . . . . . Damage Inflicted 3278 | . 714 1727 . 837 Guns 1028 | . 446 358 . 224 Cannons 693 | . . 120 . 573 Explosions 1555 | . 268 1247 . 40 Melee . | . . . . . Ramming 2 | . . 2 . . Kinetic 1551 | . 446 478 . 627 Thermal 170 | . . . . 170 Explosive 1515 | . 268 1247 . . Electromagnetic 40 | . . . . 40 Impact . | . . . . . Slashing . | . . . . . Piercing . | . . . . . Highest Corruption . | . . . . . Average Corruption . | . . . . . Corruption Purged . | . . . . . Corruption Blocked . | . . . . . Overload Shots . | . . . . . Overflow Damage 38 | . . 38 . . Projectiles . | . . . . . Explosions 38 | . . 38 . . Melee . | . . . . . Knockbacks 5 | . . . . 5 Impact . | . . . . . Kinetic 5 | . . . . 5 Secondary . | . . . . . Self-Inflicted Damage 79 | . . 49 . 30 Shots 6 | . . 4 . 2 Rammed . | . . . . . Targets Rammed 1 | . . 1 . . Kicked 1 | . . 1 . . Crushed . | . . . . . Highest Temperature 131 | . 43 54 . 131 Average Temperature 23 | . 10 15 . 52 Received Heat Transfer 957 | . 309 396 . 252 Siege Activations . | . . . . . Robots Corrupted . | . . . . . Combat Hostiles . | . . . . . Parts Fried . | . . . . . Impact Corruptions . | . . . . . Robots Melted . | . . . . . Combat Hostiles . | . . . . . Parts Melted . | . . . . . Heat Transferred 370 | . . . . 370 Parts Sabotaged . | . . . . . Parts Stolen . | . . . . . Parts Stripped . | . . . . . Power Chain Reactions . | . . . . . Alert | -11 -10 -9 -8 -8 ------- Run | Yrd Mat Mat Mat Gar Peak Influence 521 | . 210 521 173 318 Initial 167 | . . 44 167 112 Average 204 | . 106 325 167 230 Maximum Alert Level 2 | . 1 2 . 1 Low Security (%) 54 | 100 91 22 100 23 Level 1 38 | . 8 55 . 76 Level 2 6 | . . 21 . . Level 3 . | . . . . . Level 4 . | . . . . . Level 5 . | . . . . . High Security . | . . . . . Max Security . | . . . . . Squads Dispatched 3 | . 2 1 . . Investigation 1 | . 1 . . . Extermination . | . . . . . Reinforcement 2 | . 1 1 . . Assault . | . . . . . Garrison . | . . . . . Intercept . | . . . . . Searches Triggered . | . . . . . Construction Impeded . | . . . . . Haulers Reinforced . | . . . . . Active Scanning Responses . | . . . . . Cargo Convoy Interrupts . | . . . . . Stealth | -11 -10 -9 -8 -8 --------- Run | Yrd Mat Mat Mat Gar Distress Signals . | . . . . . Communications Jammed . | . . . . . Distress Signals . | . . . . . Times Spotted 38 | . 13 16 . 9 Peak Tracking Total 6 | . 4 6 . 4 Tactical Retreats 4 | . 1 2 . 1 Traps | -11 -10 -9 -8 -8 ------- Run | Yrd Mat Mat Mat Gar Traps Triggered 3 | . 1 . . 2 Indirectly . | . . . . . Trap Hack Attempts . | . . . . . Triggered . | . . . . . Disarmed . | . . . . . Reprogrammed . | . . . . . Reused . | . . . . . Traps Extracted . | . . . . . Installed . | . . . . . Triggered . | . . . . . Machines | -11 -10 -9 -8 -8 ---------- Run | Yrd Mat Mat Mat Gar Machines Disabled 6 | . . 6 . . Max in Single Turn 2 | . . 2 . . Machines Repaired . | . . . . . Machines Dismantled . | . . . . . Machines Sabotaged . | . . . . . Overloaded Fab Kills . | . . . . . Hacking | -11 -10 -9 -8 -8 --------- Run | Yrd Mat Mat Mat Gar Machines Accessed 11 | . 3 4 1 3 Terminals 8 | . 2 3 . 3 Fabricators . | . . . . . Repair Stations . | . . . . . Recycling Units 2 | . 1 1 . . Scanalyzers . | . . . . . Garrison Access 1 | . . . 1 . Total Hacks 22 | . 8 7 2 5 Successful 11 | . 4 4 2 1 Failed 11 | . 4 3 . 4 Catastrophic 2 | . 1 . . 1 Database Lockouts . | . . . . . Manual . | . . . . . Terminals 18 | . 7 6 . 5 Fabricators . | . . . . . Repair Stations . | . . . . . Recycling Units 2 | . 1 1 . . Scanalyzers . | . . . . . Garrison Access 2 | . . . 2 . Terminal Hacks 7 | . 3 3 . 1 Record 2 | . . 2 . . Emergency Access Points 1 | . 1 . . . Alert Level 1 | . . 1 . . Locate Traps 1 | . 1 . . . Hauler Manifests 1 | . 1 . . . Patrol Navigation 1 | . . . . 1 Fabricator Hacks . | . . . . . Repair Station Hacks . | . . . . . Recycling Unit Hacks 2 | . 1 1 . . Report Inventory 2 | . 1 1 . . Scanalyzer . | . . . . . Garrison Access Hacks 2 | . . . 2 . Unlock Access 1 | . . . 1 . Coupler Status 1 | . . . 1 . Unauthorized Hacks . | . . . . . Terminals . | . . . . . Fabricators . | . . . . . Repair Stations . | . . . . . Recycling Units . | . . . . . Scanalyzers . | . . . . . Garrison Access . | . . . . . Data Cores Recovered 1 | . . 1 . . Used . | . . . . . Hacking Detections 9 | . 2 3 1 3 Full Trace Events 1 | . . . . 1 Feedback Events . | . . . . . Feedback Blocked . | . . . . . Robot Schematics Acquired . | . . . . . Robots Built . | . . . . . Authchips . | . . . . . Time . | . . . . . Total Robot Build Rating . | . . . . . Part Schematics Acquired . | . . . . . Parts Built . | . . . . . Authchips . | . . . . . Time . | . . . . . Total Part Build Rating . | . . . . . Parts Repaired . | . . . . . Time . | . . . . . Parts Recycled . | . . . . . Recycled Matter . | . . . . . Retrieved Matter . | . . . . . Retrieved Components . | . . . . . Parts Scanalyzed . | . . . . . Part Schematics Acquired . | . . . . . Parts Damaged . | . . . . . Bothacking | -11 -10 -9 -8 -8 ------------ Run | Yrd Mat Mat Mat Gar Used RIF Installer . | . . . . . Robots Hacked 3 | . . 2 . 1 Non-combat . | . . . . . Combat 3 | . . 2 . 1 Robot Hacks Applied 3 | . . 2 . 1 parse_system 3 | . . 2 . 1 Relay Couplers Released . | . . . . . Fabnet Peak Effective % . | . . . . . Robots Rewired . | . . . . . Allies Hacked . | . . . . . Hacks Repelled . | . . . . . Allies | -11 -10 -9 -8 -8 -------- Run | Yrd Mat Mat Mat Gar Total Allies 1 | . . . . 1 Largest Group 1 | . . . . 1 Highest-Rated Group 25 | . . . . 25 Highest-Rated Ally 25 | . . . . 25 Total Orders . | . . . . . Ally Attacks 6 | . . . . 6 Total Damage 167 | . . . . 167 Kills 2 | . . . . 2 Allies Corrupted . | . . . . . Allies Melted 1 | . . . . 1 Intel | -11 -10 -9 -8 -8 ------- Run | Yrd Mat Mat Mat Gar Robot Analysis Total . | . . . . . Derelict Logs Recovered . | . . . . . Drone Launches . | . . . . . Drone Recoveries . | . . . . . Exploration | -11 -10 -9 -8 -8 ------------- Run | Yrd Mat Mat Mat Gar Turns Passed 1996 | 57 721 623 128 467 Spaces Moved 1040 | 48 421 325 64 182 Core 21 | 18 . . . 3 Treads 63 | . . . . 63 Legs 956 | 30 421 325 64 116 Wheels . | . . . . . Hover . | . . . . . Flight . | . . . . . Fastest Speed 50 | 50 120 120 190 160 Average Speed 149 | 93 140 140 190 185 Slowest Speed 350 | 120 190 190 190 350 Overloaded Moves . | . . . . . Propulsion Burnouts . | . . . . . Robots Hopped . | . . . . . Cave-ins Triggered . | . . . . . Exploration Rate (%) 27 | 4 59 29 9 37 Regions Visited 4 Branch Regions . Pre-discovered Areas . | . . . . . Known Exits Taken 1 | . . . 1 . Unknown Exits Taken 3 | 1 1 1 . . Scrap Searched . | . . . . . Spaces Dug . | . . . . . Terrain Destroyed 135 | . 22 113 . . Melee . | . . . . . Projectile . | . . . . . AOE 135 | . 22 113 . . Terrain Rammed . | . . . . . Walls Destroyed . | . . . . . Machines Disabled . | . . . . . Actions | -11 -10 -9 -8 -8 --------- Run | Yrd Mat Mat Mat Gar Total 1286 | 59 488 414 71 254 Wait 21 | . 3 18 . . Move 1036 | 47 420 324 63 182 Hop . | . . . . . Pick Up 41 | 6 13 11 4 7 Fast Attach 2 | 2 . . . . Attach 30 | 4 2 9 3 12 Detach . | . . . . . Swap 15 | . 8 7 . . Drop 9 | . 7 1 1 . Fire 118 | . 35 41 . 42 Melee 3 | . . 2 . 1 Ram . | . . . . . Kick 1 | . . 1 . . Crush . | . . . . . Escape Stasis 10 | . . . . 10 Rewire . | . . . . . Trap . | . . . . . Miscellaneous . | . . . . . Route ------- -11/Scrapyard -10/Materials (discovered 2 exits: *Mat / [*Min]) -9/Materials (discovered 2 exits: *Mat / [*Min]) -8/Materials -8/Garrison History --------- Turn | Location | Event 4 | -11/Scrapyard | Discovered new exit (range 15) 58 | -11/Scrapyard | Entered Materials 642 | -10/Materials | Discovered new exit (range 9) 729 | -10/Materials | Discovered new exit (range 8) 757 | -10/Materials | Build established: Mutant 779 | -10/Materials | Entered another Materials area 779 | -9/Materials | Evolved 2 slots: Propulsion x2 1106 | -9/Materials | Discovered new exit (range 9) 1127 | -9/Materials | Lost 3 parts (1p1n1w) 1237 | -9/Materials | Lost 3 parts (1p1n1u) 1268 | -9/Materials | Discovered new exit (range 16) 1402 | -9/Materials | Entered another Materials area 1402 | -8/Materials | Evolved 2 slots: Utility x1, Weapon x1 1528 | -8/Materials | Identified exit to Garrison 1530 | -8/Materials | Entered Garrison 1604 | -8/Garrison | Triggered checkpoint 1636 | -8/Garrison | Rescued a captive Derelict 1665 | -8/Garrison | Lost 3 parts (1n1u1w) 1819 | -8/Garrison | Lost 3 parts (1p1n1w) 1904 | -8/Garrison | Triggered checkpoint 1997 | -8/Garrison | Self-destructed Last Messages --------------- Acquired 18 matter. Acquired Lgt. Treads. Acquired 77 matter. Acquired Lgt. Armor Plating. Acquired 25 matter. Beams of light sweep through the air. An alarm sounds. Imp. Light Cannon destroyed. Lgt. Treads severed. Aluminum Leg destroyed. Jacked C-17 Slicer... >>parse_system Reading system data... Shock Bomb Launcher destroyed. Lgt. Treads severed. Datajack destroyed. Beam Rifle severed. Lgt. Assault Rifle severed. Hvy. Assault Rifle severed. Acquired Beam Rifle. Beam Rifle severed. Map ----- +----------------------------------------------------+ | ???????# ## #?????#?# #?????????????????????? | | ######## %## ##??? #?# #?????????????????????? | | [% ####"### #?????????????????????? | | !%%% #?????????????????????? | | !! #?????????????????????? | | ### ## ## ###########?????????????????????? | | ??# ## ## %###?????????????????????????????? | | ??" #?????????????????????????????? | | ??" ^ #?????????????????????????????? | | ??" #?????????????????????????????? | | ??" ^^ #?????????????????????????????? | | ??# ## ## ###?????????????????????????????? | | ### ## ## #???????????????????????????????? | | #???????????????????????????????? | | #???????????????????????????????? | | ### #???????????????????????????????? | | ??## ## ## #???????????????????????????????? | | ???# ?# ## #???????????????????????????????? | | ???# ??####### #???????????????????????????????? | | ???# ????????# #???????????????????????????????? | | ???#?????????# #?????????????????#?????????????? | | ?????????????# #???????????????? #?????????????? | | ?????????????# ################# ###########???? | | ?????????????# ^^ ??? | | ?????????????# ^ c[[ ??? | | ?????????????# ^^ @c[== = ??? | | ?????????????##################### ####?????????? | | ?????????????????????????????????????????????????? | | ?????????????????????????????????????????????????? | | ?????????????????????????????????????????????????? | | ?????????????????????????????????????????????????? | | ?????????????????????????????????????????????????? | | ?????????????????????????????????????????????????? | | ?????????????????????????????????????????????????? | | ?????????????????????????????????????????????????? | | ?????????????????????????????????????????????????? | | ?????????????????????????????????????????????????? | | ?????????????????????????????????????????????????? | | ?????????????????????????????????????????????????? | | ?????????????????????????????????????????????????? | | ?????????????????????????????????????????????????? | | ?????????????????????????????????????????????????? | | ?????????????????????????????????????????????????? | | ?????????????????????????????????????????????????? | | ?????????????????????????????????????????????????? | | ?????????????????????????????????????????????????? | | ?????????????????????????????????????????????????? | | ?????????????????????????????????????????????????? | | ?????????????????????????????????????????????????? | | ?????????????????????????????????????????????????? | +----------------------------------------------------+ Best States ------------- Heat Dissipation 31 Energy Generation 14 Energy Capacity 250 Matter Stores 300 Matter Capacity 300 Sight Range 16 Terrain Scan Density 10 Additional Mass Support 9 Armor Coverage 225 Evasion (%) 55 Recoil Reduction 3 Salvage Targeting 1 Item Schematics ----------------- None Robot Schematics ------------------ None Fabricated ------------ Nothing Alien Tech Used ----------------- None Achievements -------------- Shopping List Challenges ------------ None Game ------ Seed ThermicNetworkFacilitator Manual? 0 Play Time 00:32:22 Cumulative 4.1 hours Start 2024.11.22 @ 08:17:22 End 2024.11.22 @ 14:38:26 Sessions 3 Manual Loads 0 Difficulty Rogue Special Mode None Game No. 8 Rogue 8 Adventurer 0 Explorer 0 Win Type - Total 0 Types 0/0/0/0/0/0/0/0/0 Lore% 9 Gallery% 9 Achievement% 10 Wizard Run 0 Options --------- Layout 0 ASCII 0 Keyboard 0 Movement Mouse Keybinds 0 Fullscreen 2 Font 24/Smallcaps Map View 76x56 Zoom Use 0% Tactical HUD 0 Map Filters NONE Filters NONE Steam 1 RUN: ff7f2d27-9ec5-4489-8595-f5abb7618d61